[Event "GER-ch Youth-U12 2022"]
[Site "Willingen"]
[Date "2022.06.05"]
[Round "2.24"]
[White "Prashanthakumar, Arju"]
[Black "Kullmann, Max"]
[Result "1-0"]
[ECO "A21"]
[WhiteElo "1265"]
[BlackElo "1442"]
[Annotator "NA RC COMBH"]
[PlyCount "49"]
[EventDate "2022.06.05"]
[EventType "swiss"]
[EventRounds "9"]
[EventCountry "GER"]
[SourceTitle "playchess.com"]
[Source "ChessBase"]
[SourceQuality "1"]
[TimeControl "40/4500+30:900+30"]

1. c4 {[%emt 0:00:00]} e5 {[%emt 0:00:00]} 2. Nc3 {[%emt 0:00:00]} f5 {[%emt 0:00:00]} 3. g3 {[%emt 0:00:00]} Bc5 {[%emt 0:00:00]} 4. Bg2 {[%emt 0:00:00]} Nf6 {[%emt 0:00:00]} 5. d3 {[%emt 0:00:00]} c6 {[%emt 0:00:00]} 6. Nf3 {[%emt 0:00:00]} Qc7 {[%emt 0:00:44]} 7. Bg5 {[%emt 0:01:22]} Ng4 {[%emt 0:01:42]} 8. O-O {[%emt 0:08:48]} O-O {[%emt 0:01:34]} 9. h3 {[%emt 0:03:16]} Nf6 {[%emt 0:01:55]} 10. Bxf6 {[%emt 0:05:26]} Rxf6 {[%emt 0:00:09]} 11. e3 {[%emt 0:01:57]} Rf8 {[%emt 0:04:12]} 12. d4 {[%emt 0:03:12]} exd4 {[%emt 0:02:09]} 13. exd4 {[%emt 0:02:56]} Bb4 {[%emt 0:00:13]} 14. Qb3 {[%emt 0:04:39]} Bxc3 {[%emt 0:01:00]} 15. Qxc3 {[%emt 0:04:57]} d6 {[%emt 0:00:37]} 16. Rfe1 {[%emt 0:03:25]} Qf7 {[%emt 0:01:45]} 17. Re2 {[%emt 0:05:49]} Re8 {[%emt 0:01:13]} 18. Rae1 {[%emt 0:03:17]} Rxe2 {[%emt 0:01:49]} 19. Rxe2 {[%emt 0:01:38]} Nd7 {[%emt 0:01:28]} 20. Ng5 {[%emt 0:07:59]} Qh5 {[%emt 0:01:19]} 21. Qe3 {[%emt 0:02:45]} h6 {[%emt 0:01:19]} 22. Qe6+ {[%emt 0:02:14]} Kh8 {[%emt 0:01:28]} 23. Qe8+ {[%emt 0:00:27]} Qxe8 {[%emt 0:00:12]} 24. Rxe8+ {[%emt 0:00:06]} Nf8 {[%emt 0:00:05]} 25. Rxf8# {[%emt 0:00:37]} 1-0

[Event "GER-ch Youth-U12 2022"]
[Site "Willingen"]
[Date "2022.06.05"]
[Round "2.25"]
[White "Büchel, David"]
[Black "Böhler, Yannic"]
[Result "1-0"]
[ECO "B33"]
[WhiteElo "1527"]
[BlackElo "1361"]
[Annotator "NA RC COMBH"]
[PlyCount "91"]
[EventDate "2022.06.05"]
[EventType "swiss"]
[EventRounds "9"]
[EventCountry "GER"]
[SourceTitle "playchess.com"]
[Source "ChessBase"]
[SourceQuality "1"]
[TimeControl "40/4500+30:900+30"]

1. e4 {[%emt 0:00:00]} c5 {[%emt 0:00:00]} 2. Nf3 {[%emt 0:00:00]} Nc6 {[%emt 0:00:00]} 3. d4 {[%emt 0:00:00]} cxd4 {[%emt 0:00:00]} 4. Nxd4 {[%emt 0:00:00]} Nf6 {[%emt 0:00:00]} 5. Nc3 {[%emt 0:00:00]} e6 {[%emt 0:00:06]} 6. Ndb5 {[%emt 0:00:00]} d6 {[%emt 0:00:00]} 7. Bf4 {[%emt 0:00:00]} e5 {[%emt 0:00:00]} 8. Bg5 {[%emt 0:00:00]} a6 {[%emt 0:00:00]} 9. Na3 {[%emt 0:00:00]} b5 {[%emt 0:00:00]} 10. Bxf6 {[%emt 0:00:00]} gxf6 {[%emt 0:00:00]} 11. Nd5 {[%emt 0:00:00]} Be7 {[%emt 0:00:00]} 12. c3 {[%emt 0:00:00]} O-O {[%emt 0:00:00]} 13. Be2 {[%emt 0:00:00]} Kh8 {[%emt 0:00:00]} 14. Bg4 {[%emt 0:00:41]} Bxg4 {[%emt 0:12:09]} 15. Qxg4 {[%emt 0:00:27]} Rg8 {[%emt 0:00:04]} 16. Qf3 {[%emt 0:01:27]} Rg6 {[%emt 0:01:14]} 17. O-O {[%emt 0:06:53]} Bf8 {[%emt 0:15:39]} 18. Nc2 {[%emt 0:02:05]} Bh6 {[%emt 0:03:49]} 19. Nce3 {[%emt 0:04:46]} Rb8 {[%emt 0:12:56]} 20. b4 {[%emt 0:13:16]} Bg5 {[%emt 0:05:09]} 21. Nf5 {[%emt 0:03:00]} Qd7 {[%emt 0:02:42]} 22. Rad1 {[%emt 0:03:10]} Rbg8 {[%emt 0:06:30]} 23. g3 {[%emt 0:02:07]} Bh6 {[%emt 0:02:18]} 24. Nde3 {[%emt 0:06:37]} Bf8 {[%emt 0:00:36]} 25. Rd3 {[%emt 0:02:58]} Na7 {[%emt 0:02:31]} 26. Rfd1 {[%emt 0:01:51]} Nc8 {[%emt 0:00:10]} 27. c4 {[%emt 0:04:24]} Qc7 {[%emt 0:01:19]} 28. cxb5 {[%emt 0:01:33]} axb5 {[%emt 0:00:07]} 29. Nd5 {[%emt 0:00:40]} Qa7 {[%emt 0:01:28]} 30. Rc1 {[%emt 0:02:46]} Qb7 {[%emt 0:01:46]} 31. Rc7 {[%emt 0:01:56]} Qb8 {[%emt 0:04:41]} 32. Rxf7 {[%emt 0:01:22]} Nb6 {[%emt 0:00:37]} 33. Qh5 {[%emt 0:02:32]} h6 {[%emt 0:00:35]} 34. Nde7 {[%emt 0:03:31]} Rg5 {[%emt 0:04:12]} 35. Qh3 {[%emt 0:00:46]} h5 {[%emt 0:00:48]} 36. Nxg8 {[%emt 0:01:28]} Kxg8 {[%emt 0:00:10]} 37. Rxf6 {[%emt 0:00:38]} Nc4 {[%emt 0:01:58]} 38. Nh6+ {[%emt 0:01:38]} Kg7 {[%emt 0:00:23]} 39. Qd7+ {[%emt 0:01:04]} Kh8 {[%emt 0:02:34]} 40. Nf7+ {[%emt 0:00:11]} Kg7 {[%emt 0:00:19]} 41. Nd8+ {[%emt 0:16:31]} Kh8 {[%emt 0:03:18]} 42. Rxf8+ {[%emt 0:00:10]} Rg8 {[%emt 0:15:03]} 43. Nf7+ {[%emt 0:00:34]} Kg7 {[%emt 0:00:39]} 44. Nxe5+ {[%emt 0:00:25]} Kh6 {[%emt 0:00:42]} 45. Rf6+ {[%emt 0:00:08]} Kg5 {[%emt 0:00:18]} 46. Qf5# {[%emt 0:00:44]} 1-0

[Event "GER-ch Youth-U12 2022"]
[Site "Willingen"]
[Date "2022.06.05"]
[Round "2.26"]
[White "Pham, Jacky"]
[Black "Mohammadzadeh, Daris"]
[Result "0-1"]
[ECO "B25"]
[WhiteElo "1189"]
[BlackElo "1371"]
[Annotator "NA RC COMBH"]
[PlyCount "134"]
[EventDate "2022.06.05"]
[EventType "swiss"]
[EventRounds "9"]
[EventCountry "GER"]
[SourceTitle "playchess.com"]
[Source "ChessBase"]
[SourceQuality "1"]
[TimeControl "40/4500+30:900+30"]

1. e4 {[%emt 0:00:00]} c5 {[%emt 0:00:00]} 2. Nc3 {[%emt 0:00:00]} Nc6 {[%emt 0:00:00]} 3. g3 {[%emt 0:00:00]} Nf6 {[%emt 0:00:00]} 4. Bg2 {[%emt 0:00:00]} d6 {[%emt 0:00:00]} 5. h3 {[%emt 0:00:00]} g6 {[%emt 0:00:00]} 6. Nge2 {[%emt 0:00:00]} Bg7 {[%emt 0:00:00]} 7. d3 {[%emt 0:00:00]} Bd7 {[%emt 0:00:00]} 8. O-O {[%emt 0:00:00]} O-O {[%emt 0:00:00]} 9. Be3 {[%emt 0:00:00]} a6 {[%emt 0:00:19]} 10. Qd2 {[%emt 0:05:23]} Qc8 {[%emt 0:06:14]} 11. Kh2 {[%emt 0:04:24]} Rb8 {[%emt 0:04:42]} 12. a4 {[%emt 0:07:41]} b5 {[%emt 0:08:53]} 13. axb5 {[%emt 0:04:51]} axb5 {[%emt 0:01:50]} 14. Bg5 {[%emt 0:07:16]} Re8 {[%emt 0:05:52]} 15. Nd5 {[%emt 0:09:28]} Nxd5 {[%emt 0:02:28]} 16. exd5 {[%emt 0:02:40]} Nd4 {[%emt 0:01:41]} 17. Nxd4 {[%emt 0:03:48]} Bxd4 {[%emt 0:02:03]} 18. c3 {[%emt 0:00:32]} Bg7 {[%emt 0:00:30]} 19. Rfe1 {[%emt 0:04:44]} e6 {[%emt 0:05:00]} 20. dxe6 {[%emt 0:04:18]} Bxe6 {[%emt 0:03:46]} 21. Bf4 {[%emt 0:01:46]} Rd8 {[%emt 0:04:24]} 22. Ra7 {[%emt 0:05:17]} b4 {[%emt 0:06:35]} 23. Bh6 {[%emt 0:05:02]} bxc3 {[%emt 0:05:53]} 24. bxc3 {[%emt 0:01:19]} Rd7 {[%emt 0:01:50]} 25. Rea1 {[%emt 0:01:29]} Rxa7 {[%emt 0:07:02]} 26. Rxa7 {[%emt 0:00:18]} Bxh6 {[%emt 0:01:58]} 27. Qxh6 {[%emt 0:00:17]} Rb2 {[%emt 0:02:26]} 28. Qc1 {[%emt 0:03:37]} Rxf2 {[%emt 0:02:43]} 29. Kg1 {[%emt 0:00:43]} Ra2 {[%emt 0:00:46]} 30. Rxa2 {[%emt 0:00:45]} Bxa2 {[%emt 0:00:10]} 31. c4 {[%emt 0:00:46]} Bb3 {[%emt 0:02:47]} 32. Qa3 {[%emt 0:00:45]} Bd1 {[%emt 0:01:08]} 33. Qc1 {[%emt 0:00:30]} Ba4 {[%emt 0:00:20]} 34. Qf4 {[%emt 0:01:26]} Qd7 {[%emt 0:01:29]} 35. Qe4 {[%emt 0:01:01]} Kg7 {[%emt 0:01:34]} 36. d4 {[%emt 0:01:04]} cxd4 {[%emt 0:01:09]} 37. Qxd4+ {[%emt 0:00:08]} Kg8 {[%emt 0:00:20]} 38. Kh2 {[%emt 0:00:57]} Bc6 {[%emt 0:00:39]} 39. Qg4 {[%emt 0:01:08]} Qxg4 {[%emt 0:01:15]} 40. hxg4 {[%emt 0:00:08]} Bxg2 {[%emt 0:00:04]} 41. Kxg2 {[%emt 0:15:05]} Kg7 {[%emt 0:17:38]} 42. Kf3 {[%emt 0:01:01]} Kf6 {[%emt 0:00:16]} 43. Kf4 {[%emt 0:00:21]} h6 {[%emt 0:02:46]} 44. Ke4 {[%emt 0:00:37]} Ke6 {[%emt 0:00:37]} 45. Kf4 {[%emt 0:00:31]} f5 {[%emt 0:00:17]} 46. g5 {[%emt 0:01:12]} h5 {[%emt 0:00:33]} 47. Ke3 {[%emt 0:00:09]} Ke5 {[%emt 0:00:39]} 48. Kd3 {[%emt 0:00:15]} f4 {[%emt 0:00:10]} 49. gxf4+ {[%emt 0:00:32]} Kxf4 {[%emt 0:00:02]} 50. Kd4 {[%emt 0:00:41]} h4 {[%emt 0:00:07]} 51. Kd5 {[%emt 0:00:12]} h3 {[%emt 0:00:04]} 52. Kxd6 {[%emt 0:00:07]} h2 {[%emt 0:00:01]} 53. c5 {[%emt 0:00:07]} h1=Q {[%emt 0:00:05]} 54. c6 {[%emt 0:00:05]} Kxg5 {[%emt 0:00:10]} 55. c7 {[%emt 0:00:04]} Qc1 {[%emt 0:00:04]} 56. Ke6 {[%emt 0:00:23]} Qxc7 {[%emt 0:00:10]} 57. Kd5 {[%emt 0:00:07]} Qe7 {[%emt 0:00:07]} 58. Kc6 {[%emt 0:00:07]} Qd8 {[%emt 0:00:07]} 59. Kc5 {[%emt 0:00:10]} Qd3 {[%emt 0:00:06]} 60. Kb4 {[%emt 0:00:05]} Qc2 {[%emt 0:00:10]} 61. Ka3 {[%emt 0:00:06]} Qb1 {[%emt 0:00:11]} 62. Ka4 {[%emt 0:00:08]} Qb6 {[%emt 0:00:04]} 63. Ka3 {[%emt 0:00:03]} Kf4 {[%emt 0:00:03]} 64. Ka2 {[%emt 0:00:07]} Ke3 {[%emt 0:00:04]} 65. Ka1 {[%emt 0:00:05]} Kd3 {[%emt 0:00:07]} 66. Ka2 {[%emt 0:00:06]} Kc3 {[%emt 0:00:04]} 67. Ka1 {[%emt 0:00:03]} Qb2# {[%emt 0:00:33]} 0-1

[Event "GER-ch Youth-U12 2022"]
[Site "Willingen"]
[Date "2022.06.05"]
[Round "2.27"]
[White "Bangert, Jonas"]
[Black "Gavrylyuk, Oleksandr"]
[Result "1-0"]
[ECO "D37"]
[WhiteElo "1483"]
[BlackElo "1272"]
[Annotator "NA RC COMBH"]
[PlyCount "123"]
[EventDate "2022.06.05"]
[EventType "swiss"]
[EventRounds "9"]
[EventCountry "GER"]
[SourceTitle "playchess.com"]
[Source "ChessBase"]
[SourceQuality "1"]
[TimeControl "40/4500+30:900+30"]

1. d4 {[%emt 0:00:00]} d5 {[%emt 0:00:00]} 2. c4 {[%emt 0:00:00]} c6 {[%emt 0:00:00]} 3. Nc3 {[%emt 0:00:00]} Nf6 {[%emt 0:00:00]} 4. Nf3 {[%emt 0:00:00]} e6 {[%emt 0:00:00]} 5. Bf4 {[%emt 0:00:00]} Be7 {[%emt 0:00:00]} 6. e3 {[%emt 0:00:00]} Nbd7 {[%emt 0:00:00]} 7. h3 {[%emt 0:00:00]} a6 {[%emt 0:00:00]} 8. a4 {[%emt 0:00:00]} O-O {[%emt 0:00:00]} 9. Bd3 {[%emt 0:00:00]} b6 {[%emt 0:00:00]} 10. Qc2 {[%emt 0:00:00]} c5 {[%emt 0:00:00]} 11. cxd5 {[%emt 0:00:00]} exd5 {[%emt 0:00:00]} 12. O-O {[%emt 0:00:00]} Bb7 {[%emt 0:00:00]} 13. Rfb1 {[%emt 0:19:52]} Rc8 {[%emt 0:00:00]} 14. Qe2 {[%emt 0:08:15]} c4 {[%emt 0:00:41]} 15. Bc2 {[%emt 0:03:03]} Re8 {[%emt 0:02:08]} 16. Rc1 {[%emt 0:02:15]} Nf8 {[%emt 0:02:24]} 17. b3 {[%emt 0:05:10]} Bd6 {[%emt 0:07:38]} 18. Bxd6 {[%emt 0:04:32]} Qxd6 {[%emt 0:00:21]} 19. bxc4 {[%emt 0:00:31]} dxc4 {[%emt 0:02:04]} 20. Ne5 {[%emt 0:05:39]} Ne6 {[%emt 0:02:13]} 21. Qd2 {[%emt 0:04:39]} Rcd8 {[%emt 0:08:46]} 22. f4 {[%emt 0:08:54]} Rc8 {[%emt 0:06:29]} 23. Rd1 {[%emt 0:12:05]} Red8 {[%emt 0:03:42]} 24. Rab1 {[%emt 0:06:54]} Nd7 {[%emt 0:00:49]} 25. Be4 {[%emt 0:04:52]} Bxe4 {[%emt 0:03:41]} 26. Nxe4 {[%emt 0:00:06]} Qc7 {[%emt 0:02:13]} 27. Nf3 {[%emt 0:01:18]} c3 {[%emt 0:00:36]} 28. Qc2 {[%emt 0:00:03]} f5 {[%emt 0:05:25]} 29. Ng3 {[%emt 0:01:10]} g6 {[%emt 0:01:20]} 30. Rd3 {[%emt 0:00:27]} Nf6 {[%emt 0:00:27]} 31. Rc1 {[%emt 0:00:25]} Nd5 {[%emt 0:00:12]} 32. Ne2 {[%emt 0:00:43]} b5 {[%emt 0:01:12]} 33. axb5 {[%emt 0:00:27]} axb5 {[%emt 0:00:04]} 34. Qb3 {[%emt 0:00:29]} b4 {[%emt 0:00:35]} 35. Ne1 {[%emt 0:00:26]} Ra8 {[%emt 0:00:37]} 36. Nc2 {[%emt 0:00:08]} Qb7 {[%emt 0:01:34]} 37. Nxc3 {[%emt 0:00:38]} Nxc3 {[%emt 0:01:01]} 38. Rxc3 {[%emt 0:00:06]} Ra6 {[%emt 0:03:25]} 39. Qxb4 {[%emt 0:01:06]} Rb6 {[%emt 0:00:36]} 40. Qc4 {[%emt 0:00:10]} Rdd6 {[%emt 0:01:29]} 41. Qc8+ {[%emt 0:15:56]} Qxc8 {[%emt 0:16:30]} 42. Rxc8+ {[%emt 0:00:26]} Kf7 {[%emt 0:02:41]} 43. Na3 {[%emt 0:00:00]} Rb3 {[%emt 0:00:00]} 44. R8c3 {[%emt 0:00:00]} Rb8 {[%emt 0:00:00]} 45. Nc4 {[%emt 0:00:00]} Rdd8 {[%emt 0:00:00]} 46. Ne5+ {[%emt 0:00:00]} Kg7 {[%emt 0:00:00]} 47. Rc6 {[%emt 0:00:00]} Nf8 {[%emt 0:00:00]} 48. Rc7+ {[%emt 0:00:00]} Kg8 {[%emt 0:00:00]} 49. Kf2 {[%emt 0:00:00]} Rb2+ {[%emt 0:00:00]} 50. R1c2 {[%emt 0:00:00]} Rxc2+ {[%emt 0:00:00]} 51. Rxc2 {[%emt 0:00:00]} Nd7 {[%emt 0:00:00]} 52. Nxd7 {[%emt 0:00:00]} Rxd7 {[%emt 0:00:00]} 53. Kf3 {[%emt 0:00:00]} Kf7 {[%emt 0:00:00]} 54. Rd2 {[%emt 0:00:00]} Ke6 {[%emt 0:00:00]} 55. Rc2 {[%emt 0:00:00]} Kf7 {[%emt 0:00:00]} 56. g4 {[%emt 0:00:00]} Ke6 {[%emt 0:00:00]} 57. Rc5 {[%emt 0:00:00]} Kf6 {[%emt 0:00:00]} 58. Re5 {[%emt 0:00:00]} Rd6 {[%emt 0:00:00]} 59. d5 {[%emt 0:02:07]} fxg4+ {[%emt 0:00:00]} 60. hxg4 {[%emt 0:02:27]} h6 {[%emt 0:00:00]} 61. g5+ {[%emt 0:00:43]} hxg5 {[%emt 0:00:00]} 62. Rxg5 {[%emt 0:00:08]} 1-0

[Event "GER-ch Youth-U12 2022"]
[Site "Willingen"]
[Date "2022.06.06"]
[Round "3.1"]
[White "Aniol, Nico"]
[Black "Gloeckler, Christian"]
[Result "1/2-1/2"]
[ECO "B26"]
[WhiteElo "1494"]
[BlackElo "1869"]
[Annotator "NA RC COMBH"]
[PlyCount "101"]
[EventDate "2022.06.05"]
[EventType "swiss"]
[EventRounds "9"]
[EventCountry "GER"]
[SourceTitle "playchess.com"]
[Source "ChessBase"]
[SourceQuality "1"]
[TimeControl "40/4500+30:900+30"]

1. e4 {[%emt 0:00:00]} c5 {[%emt 0:00:00]} 2. Nc3 {[%emt 0:00:00]} Nc6 {[%emt 0:00:00]} 3. Nge2 {[%emt 0:00:00]} g6 {[%emt 0:00:00]} 4. g3 {[%emt 0:00:00]} Bg7 {[%emt 0:00:00]} 5. Bg2 {[%emt 0:00:00]} d6 {[%emt 0:00:00]} 6. d3 {[%emt 0:00:00]} e6 {[%emt 0:00:00]} 7. O-O {[%emt 0:00:00]} Nge7 {[%emt 0:00:00]} 8. Be3 {[%emt 0:00:00]} Nd4 {[%emt 0:00:00]} 9. f4 {[%emt 0:00:00]} O-O {[%emt 0:00:00]} 10. Qd2 {[%emt 0:00:00]} Rb8 {[%emt 0:04:34]} 11. Nd1 {[%emt 0:06:41]} Nxe2+ {[%emt 0:05:39]} 12. Qxe2 {[%emt 0:00:15]} Qc7 {[%emt 0:00:31]} 13. Rb1 {[%emt 0:05:33]} d5 {[%emt 0:07:12]} 14. c3 {[%emt 0:05:50]} b6 {[%emt 0:04:38]} 15. b4 {[%emt 0:03:23]} cxb4 {[%emt 0:06:41]} 16. cxb4 {[%emt 0:00:25]} Bb7 {[%emt 0:00:19]} 17. Nf2 {[%emt 0:01:03]} Rbc8 {[%emt 0:02:24]} 18. Rfc1 $11 {[%emt 0:01:20]} Qd7 {[%emt 0:01:03]} 19. Qd1 {[%emt 0:04:26]} Rfd8 {[%emt 0:04:56]} 20. Rxc8 {[%emt 0:13:11]} Rxc8 {[%emt 0:02:05]} 21. Rc1 {[%emt 0:00:18]} h5 {[%emt 0:08:39]} 22. Rxc8+ {[%emt 0:09:16]} Qxc8 {[%emt 0:01:19]} 23. Qc1 {[%emt 0:00:43]} Qxc1+ {[%emt 0:00:49]} 24. Bxc1 {[%emt 0:00:04]} Bd4 {[%emt 0:00:18]} 25. Kf1 {[%emt 0:01:05]} Ba6 {[%emt 0:02:51]} 26. a4 {[%emt 0:01:43]} b5 {[%emt 0:06:38]} 27. axb5 {[%emt 0:03:41]} Bxb5 {[%emt 0:00:32]} 28. Bd2 {[%emt 0:01:23]} dxe4 {[%emt 0:01:17]} 29. Bxe4 {[%emt 0:00:13]} f5 {[%emt 0:02:04]} 30. Bf3 {[%emt 0:01:11]} Nc6 {[%emt 0:03:27]} 31. Be2 {[%emt 0:01:44]} e5 {[%emt 0:01:17]} 32. fxe5 {[%emt 0:01:12]} Nxe5 {[%emt 0:00:24]} 33. Kg2 {[%emt 0:02:02]} Bc6+ {[%emt 0:02:31]} 34. Kf1 {[%emt 0:00:35]} Kf7 {[%emt 0:02:38]} 35. Nh3 {[%emt 0:00:44]} Bb5 {[%emt 0:00:54]} 36. Kg2 {[%emt 0:02:41]} Nxd3 {[%emt 0:02:06]} 37. Ng5+ {[%emt 0:00:26]} Ke7 {[%emt 0:01:34]} 38. Nf3 {[%emt 0:00:07]} Bb6 {[%emt 0:01:37]} 39. Ne5 {[%emt 0:00:40]} Nxe5 {[%emt 0:02:48]} 40. Bxb5 {[%emt 0:00:08]} Ng4 {[%emt 0:00:31]} 41. h3 {[%emt 0:15:32]} Ne3+ {[%emt 0:16:28]} 42. Bxe3 {[%emt 0:00:12]} Bxe3 {[%emt 0:00:09]} 43. Bd3 {[%emt 0:00:09]} Kf6 {[%emt 0:00:55]} 44. h4 {[%emt 0:00:07]} Bd2 {[%emt 0:01:13]} 45. b5 {[%emt 0:00:03]} Be1 {[%emt 0:00:56]} 46. Kf3 {[%emt 0:00:06]} Ke5 {[%emt 0:00:40]} 47. Bc2 {[%emt 0:00:33]} Kf6 {[%emt 0:01:03]} 48. Bd3 {[%emt 0:00:07]} Bd2 {[%emt 0:00:41]} 49. Ke2 {[%emt 0:00:08]} Ba5 {[%emt 0:00:33]} 50. Kf3 {[%emt 0:00:06]} Bc7 {[%emt 0:01:09]} 51. Bc2 {[%emt 0:01:23]} 1/2-1/2

[Event "GER-ch Youth-U12 2022"]
[Site "Willingen"]
[Date "2022.06.06"]
[Round "3.2"]
[White "Sydykov Bayastan"]
[Black "Malinowsky, Levi"]
[Result "1/2-1/2"]
[ECO "B42"]
[WhiteElo "1477"]
[BlackElo "1816"]
[Annotator "NA RC COMBH"]
[PlyCount "62"]
[EventDate "2022.06.05"]
[EventType "swiss"]
[EventRounds "9"]
[EventCountry "GER"]
[SourceTitle "playchess.com"]
[Source "ChessBase"]
[SourceQuality "1"]
[TimeControl "40/4500+30:900+30"]

1. e4 {[%emt 0:00:00]} c5 {[%emt 0:00:00]} 2. Nf3 {[%emt 0:00:00]} d6 {[%emt 0:00:00]} 3. d4 {[%emt 0:00:00]} cxd4 {[%emt 0:00:00]} 4. Nxd4 {[%emt 0:00:00]} Nf6 {[%emt 0:00:00]} 5. Bd3 {[%emt 0:00:00]} e6 {[%emt 0:00:00]} 6. O-O {[%emt 0:00:00]} Be7 {[%emt 0:00:00]} 7. Qe2 {[%emt 0:00:00]} O-O {[%emt 0:00:00]} 8. c4 {[%emt 0:00:00]} a6 {[%emt 0:00:00]} 9. Nc3 {[%emt 0:00:00]} Qc7 {[%emt 0:00:00]} 10. f4 {[%emt 0:00:00]} Nbd7 {[%emt 0:00:00]} 11. Kh1 {[%emt 0:00:00]} Re8 {[%emt 0:00:00]} 12. Bd2 {[%emt 0:00:00]} Bf8 {[%emt 0:00:56]} 13. f5 {[%emt 0:00:00]} Ne5 {[%emt 0:02:39]} 14. Rad1 {[%emt 0:02:23]} Nfd7 {[%emt 0:10:35]} 15. b3 {[%emt 0:01:12]} Nc6 {[%emt 0:07:07]} 16. fxe6 {[%emt 0:03:26]} fxe6 {[%emt 0:01:56]} 17. Nf3 {[%emt 0:02:53]} Be7 {[%emt 0:09:41]} 18. Bf4 {[%emt 0:08:03]} Rf8 {[%emt 0:05:28]} 19. Bg3 {[%emt 0:01:37]} Qa5 {[%emt 0:05:23]} 20. Qd2 {[%emt 0:02:49]} Bf6 {[%emt 0:03:49]} 21. Ne2 {[%emt 0:05:48]} Qxd2 {[%emt 0:05:23]} 22. Rxd2 {[%emt 0:02:23]} Nde5 {[%emt 0:00:50]} 23. Bb1 {[%emt 0:03:14]} Be7 {[%emt 0:04:07]} 24. Ned4 {[%emt 0:13:56]} Nxd4 {[%emt 0:12:29]} 25. Rxd4 {[%emt 0:00:11]} Nc6 {[%emt 0:00:48]} 26. Rdd1 {[%emt 0:01:32]} e5 {[%emt 0:00:36]} 27. h3 {[%emt 0:01:13]} Be6 {[%emt 0:01:28]} 28. Rc1 {[%emt 0:08:00]} Rad8 {[%emt 0:03:26]} 29. Bf2 {[%emt 0:01:49]} Rd7 {[%emt 0:02:29]} 30. Be3 {[%emt 0:01:01]} h6 {[%emt 0:01:06]} 31. Kh2 {[%emt 0:02:31]} g5 {[%emt 0:03:33]} 1/2-1/2

[Event "GER-ch Youth-U12 2022"]
[Site "Willingen"]
[Date "2022.06.06"]
[Round "3.4"]
[White "Stichter, Constantin Paul"]
[Black "Kulkovets, Roman"]
[Result "1/2-1/2"]
[ECO "B13"]
[WhiteElo "1472"]
[BlackElo "1099"]
[Annotator "NA RC COMBH"]
[PlyCount "92"]
[EventDate "2022.06.05"]
[EventType "swiss"]
[EventRounds "9"]
[EventCountry "GER"]
[SourceTitle "playchess.com"]
[Source "ChessBase"]
[SourceQuality "1"]
[TimeControl "40/4500+30:900+30"]

1. e4 {[%emt 0:00:00]} c6 {[%emt 0:00:00]} 2. d4 {[%emt 0:00:00]} d5 {[%emt 0:00:00]} 3. exd5 {[%emt 0:00:00]} cxd5 {[%emt 0:00:00]} 4. c3 {[%emt 0:00:00]} Bf5 {[%emt 0:00:00]} 5. Bd3 {[%emt 0:00:00]} Bxd3 {[%emt 0:00:00]} 6. Qxd3 {[%emt 0:00:00]} Nf6 {[%emt 0:00:00]} 7. Bf4 {[%emt 0:00:00]} Nc6 {[%emt 0:00:00]} 8. Nf3 {[%emt 0:00:00]} e6 {[%emt 0:00:00]} 9. Nbd2 {[%emt 0:00:00]} Be7 {[%emt 0:00:00]} 10. O-O {[%emt 0:00:00]} a6 {[%emt 0:00:00]} 11. a4 {[%emt 0:00:00]} O-O {[%emt 0:00:00]} 12. Rfe1 {[%emt 0:00:00]} Rc8 {[%emt 0:00:00]} 13. Ne5 {[%emt 0:00:00]} Nxe5 {[%emt 0:00:00]} 14. Bxe5 {[%emt 0:00:00]} Nd7 {[%emt 0:00:00]} 15. Re3 {[%emt 0:00:00]} Bf6 {[%emt 0:00:00]} 16. f4 {[%emt 0:00:00]} Qb6 {[%emt 0:00:00]} 17. Rh3 {[%emt 0:05:56]} g6 {[%emt 0:00:00]} 18. Qe3 {[%emt 0:04:03]} Rfe8 {[%emt 0:00:00]} 19. a5 {[%emt 0:02:07]} Qxb2 {[%emt 0:00:00]} 20. Rb1 {[%emt 0:00:38]} Qa2 {[%emt 0:00:00]} 21. Rxb7 {[%emt 0:00:11]} Nxe5 {[%emt 0:00:00]} 22. fxe5 {[%emt 0:00:10]} Bg7 {[%emt 0:00:00]} 23. Rf3 {[%emt 0:00:52]} Rf8 {[%emt 0:00:00]} 24. Qf2 {[%emt 0:00:12]} Qxa5 {[%emt 0:00:00]} 25. Rfxf7 {[%emt 0:00:14]} Kh8 {[%emt 0:00:00]} 26. Nb1 {[%emt 0:24:07]} Rb8 {[%emt 0:02:05]} 27. h3 {[%emt 0:04:22]} Qd8 {[%emt 0:00:14]} 28. Rxf8+ {[%emt 0:03:58]} Bxf8 {[%emt 0:00:28]} 29. Qf7 {[%emt 0:05:22]} Rxb7 {[%emt 0:00:06]} 30. Qxb7 {[%emt 0:00:02]} a5 {[%emt 0:00:07]} 31. Qc6 {[%emt 0:00:06]} Qg5 {[%emt 0:00:12]} 32. Qxe6 {[%emt 0:01:10]} h5 {[%emt 0:00:12]} 33. Qf7 {[%emt 0:04:24]} Bh6 {[%emt 0:01:33]} 34. Qe8+ {[%emt 0:01:45]} Kh7 {[%emt 0:00:16]} 35. Qd7+ {[%emt 0:06:46]} Kg8 36. Qe8+ Kh7 37. Qf7+ {[%emt 0:00:01]} Kh8 {[%emt 0:00:03]} 38. e6 {[%emt 0:00:03]} Qc1+ {[%emt 0:00:02]} 39. Kh2 Bf4+ {[%emt 0:00:06]} 40. g3 {[%emt 0:00:01]} Qc2+ {[%emt 0:00:02]} 41. Kh1 Qd1+ 42. Kh2 Qe2+ 43. Kh1 Qe1+ 44. Kh2 Qxg3+ {[%emt 0:00:01]} 45. Kh1 {[%emt 0:00:01]} Qf3+ 46. Kg1 Be3+ {[%emt 0:00:02]} 1/2-1/2